bitfinex/quotes_SOLUSD_20251231
["timestamp","ask_amount","ask_price","bid_price","bid_amount"]
[1767177539957,2.72105145,126.18,126.15,0.7]
[1767177544952,0.69,126.18,126.15,0.7]
[1767177546352,0.69,126.19,126.17,0.72]
[1767177548454,2.72105145,126.19,126.17,0.72]
[1767177550677,2.03105145,126.19,126.17,0.72]
[1767177550878,2.72105145,126.19,126.17,0.72]
[1767177551073,0.69,126.19,126.17,0.72]
[1767177559687,2.03105145,126.2,126.17,0.72]
[1767177559868,2.71105145,126.2,126.17,0.72]
[1767177560073,0.68,126.19,126.17,0.72]
[1767177566173,2.71105145,126.2,126.17,0.72]
[1767177567501,2.03105145,126.2,126.17,0.72]
[1767177567691,2.71105145,126.2,126.17,0.72]
[1767177568191,0.68,126.19,126.17,0.72]
[1767177570600,0.68,126.19,126.15,2.03105145]
[1767177570787,0.68,126.19,126.16,2.69105145]
[1767177570976,10.63512239,126.2,126.17,0.66]
[1767177571176,0.68,126.19,126.17,0.66]
[1767177575982,0.68,126.19,126.16,2.03105145]
[1767177576190,0.68,126.19,126.16,2.72105145]
[1767177577479,0.69,126.18,126.16,0.69]
[1767177579198,8.61457448,126.19,126.16,0.69]
[1767177583182,0.69,126.18,126.16,0.69]
[1767177584709,8.61457448,126.19,126.16,0.69]
[1767177587311,8.61457448,126.19,126.16,3.86132458]
[1767177590311,0.69,126.19,126.16,3.86132458]
[1767177595106,0.69,126.19,126.16,0.69]
[1767177605219,5.94648261,126.18,126.16,0.69]
[1767177605416,0.69,126.19,126.16,0.69]
[1767177605624,5.94648368,126.18,126.16,0.69]
[1767177605919,0.69,126.19,126.16,0.69]
[1767177606104,5.94648261,126.18,126.16,0.69]
[1767177606305,0.69,126.19,126.16,0.69]
[1767177606505,5.94666623,126.18,126.16,0.69]
[1767177606693,0.69,126.19,126.16,0.69]
[1767177606895,5.94747279,126.18,126.16,0.69]
[1767177607194,0.69,126.19,126.16,0.69]
[1767177607390,5.94768247,126.18,126.16,0.69]
[1767177607617,0.69,126.19,126.16,0.69]
[1767177607795,5.94715233,126.18,126.16,0.69]
[1767177607996,0.69,126.19,126.16,0.69]
[1767177608218,5.94715233,126.18,126.16,0.69]
[1767177608403,0.69,126.19,126.16,0.69]
[1767177608608,5.94739148,126.18,126.16,0.69]
[1767177608800,0.69,126.19,126.16,0.69]
[1767177608998,5.94739148,126.18,126.16,0.69]
[1767177609314,0.69,126.19,126.16,0.69]
[1767177609493,5.94767037,126.18,126.16,0.69]
[1767177609698,0.69,126.19,126.16,0.69]
[1767177609997,5.9476693,126.18,126.16,0.69]
[1767177610195,0.69,126.19,126.16,0.69]
[1767177610409,5.94799761,126.18,126.16,0.69]
[1767177610606,0.69,126.19,126.16,0.69]
[1767177610807,5.94799761,126.18,126.16,0.69]
[1767177611026,0.69,126.19,126.16,0.69]
[1767177611325,5.9480227,126.18,126.16,0.69]
[1767177611529,0.69,126.19,126.16,0.69]
[1767177611737,6.6183894,126.18,126.14,11.09899712]
[1767177611904,0.67,126.18,126.15,0.66]
[1767177614937,0.67,126.18,126.15,3.83132458]
[1767177617129,0.67,126.19,126.16,0.66]
[1767177617326,5.9493648,126.18,126.16,0.66]
[1767177617527,0.67,126.19,126.16,0.66]
[1767177617730,5.94935997,126.18,126.16,0.66]
[1767177617949,0.67,126.19,126.16,0.66]
[1767177618126,5.9493686,126.18,126.16,0.66]
[1767177618332,0.67,126.19,126.16,0.66]
[1767177618542,5.94938189,126.18,126.16,3.83132458]
[1767177618743,0.67,126.19,126.16,3.83132458]
[1767177618945,5.94938189,126.18,126.16,3.83132458]
[1767177619240,0.67,126.19,126.16,3.83132458]
[1767177619441,5.94912718,126.18,126.16,3.83132458]
[1767177619646,0.67,126.19,126.16,3.83132458]
[1767177619822,5.94912826,126.18,126.16,3.83132458]
[1767177620023,0.67,126.19,126.16,3.83132458]
[1767177620240,5.94912826,126.18,126.16,0.66]
[1767177620547,0.67,126.19,126.16,0.66]
[1767177620746,5.94913274,126.18,126.16,0.66]
[1767177620948,0.67,126.19,126.16,0.66]
[1767177621127,5.94912791,126.18,126.16,0.66]
[1767177621451,0.67,126.19,126.16,0.66]
[1767177621648,5.94913475,126.18,126.16,0.66]
[1767177621849,0.67,126.19,126.16,0.66]
[1767177622043,5.94913583,126.18,126.16,0.66]
[1767177622242,0.67,126.19,126.16,0.66]
[1767177622424,5.94914188,126.18,126.16,0.66]
[1767177622625,0.67,126.19,126.16,0.66]
[1767177622846,5.94914336,126.18,126.16,0.66]
[1767177623053,0.67,126.19,126.16,0.66]
[1767177623245,5.94910907,126.18,126.16,0.66]
[1767177623431,0.67,126.19,126.16,0.66]
[1767177623630,5.9491026,126.18,126.16,0.66]
[1767177623843,0.67,126.19,126.16,0.66]
[1767177624052,5.94963403,126.18,126.16,0.66]
[1767177624256,0.67,126.19,126.16,0.66]
[1767177624439,5.94959558,126.18,126.16,0.66]
[1767177624748,0.67,126.19,126.16,0.66]
[1767177624953,5.94900432,126.18,126.16,0.66]
[1767177625137,0.67,126.19,126.16,0.66]
[1767177625339,5.94900351,126.18,126.16,0.66]
[1767177625656,0.67,126.19,126.16,0.66]
[1767177625954,5.94899543,126.18,126.16,0.66]
[1767177626167,0.67,126.19,126.16,0.66]
[1767177626459,5.94898762,126.18,126.16,0.66]
[1767177626659,0.67,126.19,126.16,0.66]
[1767177626842,5.9489703,126.18,126.16,0.66]
[1767177627041,0.67,126.19,126.16,0.66]
[1767177627250,5.94897576,126.18,126.16,0.66]
[1767177627436,0.67,126.19,126.16,0.66]
[1767177627645,5.94870754,126.18,126.16,0.66]
[1767177627830,0.67,126.19,126.16,0.66]
[1767177628032,5.94870647,126.18,126.16,0.66]
[1767177628256,0.67,126.19,126.16,0.66]
[1767177628457,5.94870568,126.18,126.16,0.66]
[1767177628657,0.67,126.19,126.16,0.66]
[1767177628845,5.94870675,126.18,126.16,0.66]
[1767177629139,0.67,126.19,126.16,0.66]
[1767177629342,5.94871737,126.18,126.16,0.66]
[1767177629545,0.67,126.19,126.16,0.66]
[1767177629730,5.9487163,126.18,126.16,0.66]
[1767177630030,0.67,126.19,126.16,0.66]
[1767177630229,5.94871737,126.18,126.16,0.66]
[1767177630427,0.67,126.19,126.16,0.66]
[1767177630627,5.94871721,126.18,126.16,0.66]
[1767177630930,0.67,126.19,126.16,0.66]
[1767177631131,5.94871614,126.18,126.16,0.66]
[1767177631339,0.67,126.19,126.16,0.66]
[1767177631542,5.94871705,126.18,126.16,0.66]
[1767177631758,0.67,126.19,126.16,0.66]
[1767177631962,5.94871705,126.18,126.16,0.66]
[1767177632138,0.67,126.19,126.16,0.66]
[1767177632338,5.94871487,126.18,126.16,0.66]
[1767177632638,0.67,126.19,126.16,0.66]
[1767177632839,5.9481845,126.18,126.16,0.66]
[1767177633137,0.67,126.19,126.16,0.66]
[1767177633338,5.94818249,126.18,126.16,0.66]
[1767177633649,0.67,126.19,126.16,0.66]
[1767177633852,5.94817977,126.18,126.16,0.66]
[1767177634056,0.67,126.19,126.16,0.66]
[1767177634353,5.94817946,126.18,126.16,0.66]
[1767177634553,0.67,126.19,126.16,0.66]
[1767177634761,5.94817751,126.18,126.16,0.66]
[1767177634963,0.67,126.19,126.16,0.66]
[1767177635259,5.94871168,126.18,126.16,0.66]
[1767177635444,0.67,126.19,126.16,0.66]
[1767177635645,5.9487095,126.18,126.16,0.66]
[1767177635857,0.67,126.19,126.16,0.66]
[1767177636059,5.94871058,126.18,126.16,0.66]
[1767177636278,0.67,126.19,126.16,0.66]
[1767177636433,5.94870948,126.18,126.16,0.66]
[1767177636637,0.67,126.19,126.16,0.66]
[1767177636852,5.94870948,126.18,126.16,0.66]
[1767177637054,0.67,126.19,126.16,0.66]
[1767177637252,5.94871517,126.18,126.16,0.66]
[1767177637453,0.67,126.19,126.16,0.66]
[1767177637752,5.9487078,126.18,126.16,0.66]
[1767177637932,0.67,126.19,126.16,0.66]
[1767177638153,5.9487078,126.18,126.16,0.66]
[1767177638348,0.67,126.19,126.16,0.66]
[1767177638551,5.94870564,126.18,126.16,0.66]
[1767177638766,0.67,126.19,126.16,0.66]
[1767177638957,5.94870671,126.18,126.16,0.66]
[1767177639262,0.67,126.19,126.16,0.66]
[1767177639562,5.94870505,126.18,126.16,0.66]
[1767177639743,0.67,126.19,126.16,0.66]
[1767177639942,5.94870505,126.18,126.16,0.66]
[1767177640158,0.67,126.19,126.16,0.66]
[1767177640457,5.94870234,126.18,126.16,0.66]
[1767177640758,0.67,126.19,126.16,0.66]
[1767177640959,5.94870234,126.18,126.16,0.66]
[1767177641135,0.67,126.19,126.16,0.66]
[1767177641338,5.9487018,126.18,126.16,0.66]
[1767177641545,0.67,126.19,126.16,0.66]
[1767177641766,5.94870073,126.18,126.16,0.66]
[1767177641950,0.67,126.19,126.16,0.66]
[1767177642152,5.94870073,126.18,126.16,0.66]
[1767177642451,0.67,126.19,126.16,0.66]
[1767177642650,5.94869972,126.18,126.16,0.66]
[1767177642851,0.67,126.19,126.16,0.66]
[1767177643050,5.94869377,126.18,126.16,0.66]
[1767177643266,0.67,126.19,126.16,0.66]
[1767177643461,5.9481586,126.18,126.16,0.66]
[1767177643657,0.67,126.19,126.16,0.66]
[1767177643863,5.9481586,126.18,126.16,0.66]
[1767177644065,0.67,126.19,126.16,0.66]
[1767177644248,5.94816471,126.18,126.16,0.66]
[1767177644452,0.67,126.19,126.16,0.66]
[1767177644659,5.94815778,126.18,126.16,0.66]
[1767177644859,0.67,126.19,126.16,0.66]
[1767177645059,5.94815778,126.18,126.16,0.66]
[1767177645243,0.67,126.19,126.16,0.66]
[1767177645444,5.94816554,126.18,126.16,0.66]
[1767177645666,0.67,126.19,126.16,0.66]
[1767177645870,5.94816447,126.18,126.16,0.66]
[1767177646167,0.67,126.19,126.16,0.66]
[1767177646343,5.94816368,126.18,126.16,0.66]
[1767177646545,0.67,126.19,126.16,0.66]
[1767177646742,5.94816475,126.18,126.16,0.66]
[1767177646970,0.67,126.19,126.16,0.66]
[1767177647170,5.94816475,126.18,126.16,0.66]
[1767177647364,0.67,126.19,126.16,0.66]
[1767177647548,5.9481645,126.18,126.16,0.66]
[1767177647844,0.67,126.19,126.16,0.66]
[1767177648045,5.94816343,126.18,126.16,0.66]
[1767177648245,0.67,126.19,126.16,0.66]
[1767177648454,5.94816319,126.18,126.16,0.66]
[1767177648657,0.67,126.19,126.16,0.66]
[1767177648853,5.94816426,126.18,126.16,0.66]
[1767177649054,0.67,126.19,126.16,0.66]
[1767177649272,5.94816241,126.18,126.16,0.66]
[1767177649451,0.67,126.19,126.16,0.66]
[1767177649653,5.94816348,126.18,126.16,0.66]
[1767177649853,0.67,126.19,126.16,0.66]
[1767177650153,5.94816241,126.18,126.16,0.66]
[1767177650452,0.67,126.19,126.16,0.66]
[1767177650653,5.9481694,126.18,126.16,0.66]
[1767177650952,0.67,126.19,126.16,0.66]
[1767177651142,5.9481694,126.18,126.16,0.66]
[1767177651346,0.67,126.19,126.16,0.66]
[1767177651549,5.9487004,126.18,126.16,0.66]
[1767177651884,0.67,126.19,126.16,0.66]
[1767177652053,5.94870147,126.18,126.16,0.66]
[1767177652372,0.67,126.19,126.16,0.66]
[1767177652565,5.94870221,126.18,126.16,0.66]
[1767177652748,0.67,126.19,126.16,0.66]
[1767177652947,5.94870221,126.18,126.16,0.66]
[1767177653143,0.67,126.19,126.16,0.66]
[1767177653345,5.94870168,126.18,126.16,0.66]
[1767177653553,0.67,126.19,126.16,0.66]
[1767177653852,5.94870168,126.18,126.16,0.66]
[1767177654054,0.67,126.19,126.16,0.66]
[1767177654267,5.94870062,126.18,126.16,0.66]
[1767177654479,0.67,126.19,126.16,0.66]
[1767177654779,5.94870062,126.18,126.16,0.66]
[1767177655075,0.67,126.19,126.16,0.66]
[1767177655280,5.94870062,126.18,126.16,0.66]
[1767177655466,0.67,126.19,126.16,0.66]
[1767177655666,5.94870169,126.18,126.16,0.66]
[1767177655864,0.67,126.19,126.16,0.66]
[1767177656066,5.94870169,126.18,126.16,0.66]
[1767177656292,0.67,126.19,126.16,0.66]
[1767177656582,5.94870063,126.18,126.16,0.66]
[1767177656766,0.67,126.19,126.16,0.66]
[1767177657064,5.94870063,126.18,126.16,0.66]
[1767177657251,0.67,126.19,126.16,0.66]
[1767177657450,5.94870423,126.18,126.16,0.66]
[1767177657653,0.67,126.19,126.16,0.66]
[1767177657871,5.94870423,126.18,126.16,0.66]
[1767177658168,0.33850409,126.19,126.16,0.66]
[1767177658368,5.94870519,126.18,126.16,0.66]
[1767177658571,0.33850409,126.19,126.16,0.66]
[1767177658802,5.94870626,126.18,126.16,0.66]
[1767177658987,0.33850409,126.19,126.16,0.66]
[1767177659284,5.94870626,126.18,126.16,0.66]
[1767177659457,0.33850409,126.19,126.16,0.66]
[1767177659658,5.95029248,126.18,126.16,0.66]
[1767177659881,0.33850409,126.19,126.16,0.66]
[1767177660080,5.94978479,126.18,126.16,0.66]
[1767177660381,0.33850409,126.19,126.16,0.66]
[1767177660572,5.94977877,126.18,126.16,0.66]
[1767177660779,0.33850409,126.19,126.16,0.66]
[1767177660958,5.94977283,126.18,126.16,0.66]
[1767177661158,0.33850409,126.19,126.16,0.66]
[1767177661361,5.94978095,126.18,126.16,0.66]
[1767177661654,0.33850409,126.19,126.16,0.66]
[1767177661854,5.94978202,126.18,126.16,0.66]
[1767177662087,0.33850409,126.19,126.16,0.66]
[1767177662259,5.94981408,126.18,126.16,0.66]
[1767177662560,0.33850409,126.19,126.16,0.66]
[1767177662762,5.94982548,126.18,126.16,0.66]
[1767177662965,7.92477392,126.19,126.13,6.69762569]
[1767177663162,0.72,126.17,126.14,0.71]
[1767177663386,6.66981453,126.16,126.13,0.71]
[1767177663595,0.72,126.16,126.13,0.71]
[1767177663887,0.72,126.15,126.13,0.71]
[1767177664269,0.69018443,126.15,126.13,0.71]
[1767177665987,0.69018443,126.15,126.12,2.02973539]
[1767177666307,0.69018443,126.15,126.12,2.71973539]
[1767177667893,0.69018443,126.15,126.12,0.69]
[1767177668088,0.69018443,126.15,126.12,2.71973539]
[1767177673497,0.69018443,126.15,126.12,10.64867894]
[1767177673820,0.69018443,126.15,126.12,2.71973539]
[1767177676299,0.69018443,126.15,126.12,0.69]
[1767177681329,2.71991982,126.15,126.12,0.69]
[1767177684611,0.69018443,126.15,126.12,0.69]
[1767177693218,0.69018443,126.15,126.12,8.61893327]
[1767177725940,0.67,126.17,126.14,0.67]
[1767177726241,5.94745363,126.16,126.14,3.84325356]
[1767177726446,0.67,126.17,126.14,3.84325356]
[1767177726631,5.94515746,126.16,126.14,3.84325356]
[1767177726938,0.67,126.17,126.14,3.84325356]
[1767177727125,6.61515746,126.16,126.14,0.67]
[1767177727323,0.67,126.16,126.14,0.67]
[1767177727736,3.17325356,126.18,126.14,11.7706081]
[1767177727931,6.61415374,126.17,126.14,11.7706081]
[1767177728235,5.94415374,126.16,126.14,11.7706081]
[1767177728433,0.67,126.17,126.14,11.7706081]
[1767177728635,5.94359418,126.16,126.14,11.7706081]
[1767177728833,0.67,126.17,126.14,11.7706081]
[1767177729044,5.94358015,126.16,126.14,11.7706081]
[1767177729245,0.67,126.17,126.14,11.7706081]
[1767177729424,15.15,126.2,126.16,3.84325356]
[1767177729624,0.67,126.19,126.16,3.84325356]
[1767177733155,0.67,126.19,126.16,11.76963607]
[1767177735323,0.67,126.19,126.16,3.84325356]
[1767177736658,0.67,126.19,126.16,11.76965848]
[1767177737028,0.67,126.19,126.17,3.17325356]
[1767177737253,0.67,126.2,126.17,3.84325356]
[1767177737553,0.67,126.2,126.18,3.17325356]
[1767177738155,0.67,126.2,126.17,3.84325356]
[1767177742756,0.67,126.2,126.17,3.17325356]
[1767177742962,3.87325356,126.21,126.18,0.69]
[1767177745862,0.7,126.2,126.17,3.17325356]
[1767177746056,0.7,126.2,126.17,3.86325356]
[1767177748468,0.7,126.2,126.17,0.69]
[1767177754175,0.7,126.2,126.17,3.86325356]
[1767177756171,0.71,126.19,126.16,3.17325356]
[1767177756414,0.71,126.19,126.16,3.87325356]
[1767177760175,0.71,126.19,126.16,0.7]
[1767177760778,0.71,126.19,126.16,3.87325356]
[1767177763277,0.71,126.19,126.16,0.7]
[1767177763484,0.71,126.19,126.16,3.87325356]
[1767177768588,0.71,126.19,126.16,2.72941881]
[1767177770176,0.71,126.19,126.16,2.02941881]
[1767177770488,0.71,126.19,126.17,0.7]
[1767177779094,0.71,126.19,126.16,2.02941881]
[1767177779288,0.71,126.19,126.16,2.72941881]
[1767177780095,0.71,126.19,126.16,0.7]
[1767177785302,0.71,126.19,126.14,7.92736463]
[1767177785303,0.71,126.19,126.15,2.72941881]
[1767177785505,7.92475435,126.19,126.15,0.7]
[1767177785704,0.71,126.18,126.15,2.72941881]
[1767177786426,0.71,126.18,126.15,0.7]
[1767177786604,0.71,126.18,126.15,2.72941881]
[1767177787009,0.71,126.18,126.15,0.7]
[1767177787207,0.71,126.18,126.15,2.72941881]
[1767177787908,0.71,126.18,126.15,0.7]
[1767177788104,0.71,126.18,126.15,2.72941881]
[1767177789002,0.71,126.18,126.16,0.67]
[1767177789683,0.71,126.18,126.15,2.02941881]
[1767177790002,0.71,126.18,126.15,2.69941881]
[1767177793488,0.72,126.2,126.17,0.67]
[1767177799812,2.74941881,126.2,126.17,0.67]
[1767177800312,2.02941881,126.2,126.17,0.67]
[1767177800616,0.66,126.19,126.17,0.67]
[1767177803224,2.68941881,126.19,126.17,0.67]
[1767177810921,0.66,126.19,126.17,0.67]
[1767177811093,2.68941881,126.19,126.17,0.67]
[1767177816626,0.66,126.19,126.17,0.67]
[1767177816796,2.68941881,126.19,126.17,0.67]
[1767177820428,0.66,126.19,126.17,0.67]
[1767177823832,0.66,126.2,126.17,0.67]
[1767177825164,2.68941881,126.2,126.17,0.67]
[1767177830465,3.83084711,126.2,126.17,0.67]
[1767177842394,3.17084711,126.19,126.17,0.67]
[1767177849814,3.17084711,126.18,126.15,0.68]
[1767177849988,3.88084711,126.17,126.14,0.68]
[1767177852012,3.88084711,126.16,126.12,0.68]
[1767177852308,3.17084711,126.15,126.12,0.68]
[1767177853507,3.88084711,126.15,126.12,0.68]
[1767177854126,3.17084711,126.15,126.12,0.68]
[1767177854291,3.88084711,126.17,126.13,0.68]
[1767177854913,0.71,126.17,126.13,0.68]
[1767177855105,3.88084711,126.17,126.13,0.68]
[1767177855310,3.88084711,126.17,126.14,0.68]
[1767177859717,0.71,126.17,126.14,0.68]
[1767177859892,3.88084711,126.17,126.14,0.68]
[1767177863509,3.17084711,126.16,126.14,0.68]
[1767177865230,3.141371,126.16,126.14,0.68]
[1767177867008,3.11208306,126.16,126.14,0.68]
[1767177868116,0.71,126.17,126.14,0.68]
[1767177868325,3.17084711,126.17,126.14,0.68]
[1767177868820,3.88084711,126.18,126.15,0.71]
[1767177870136,3.88084711,126.19,126.16,0.71]
[1767177874136,0.71,126.19,126.16,0.71]
[1767177874337,3.88084711,126.19,126.16,0.71]
[1767177874639,3.88084711,126.2,126.16,0.71]
[1767177877142,3.17084711,126.2,126.16,0.71]
[1767177877325,0.68,126.19,126.16,0.71]
[1767177880637,3.85084711,126.19,126.16,0.71]
[1767177886547,22.40295742,126.22,126.16,7.92610036]
[1767177886724,0.68,126.22,126.18,0.68]
[1767177886926,3.17084711,126.21,126.18,0.68]
[1767177887230,0.1,126.23,126.21,0.68]
[1767177888631,0.78,126.23,126.21,0.68]
[1767177897036,2.80812482,126.23,126.2,0.68]
[1767177897262,2.02812482,126.22,126.2,0.68]
[1767177897760,2.80812482,126.23,126.2,0.68]
[1767177898748,2.70812482,126.22,126.19,0.68]
[1767177899161,2.70812482,126.21,126.18,0.68]
[1767177899380,2.70812482,126.2,126.17,0.68]
[1767177902283,2.70812482,126.2,126.17,0.68]
[1767177905495,0.68,126.2,126.17,0.68]
[1767177905787,0.67,126.19,126.17,0.68]
[1767177905973,2.02812482,126.2,126.17,0.68]
[1767177906172,2.69812482,126.2,126.17,0.68]
[1767177907092,2.69812482,126.18,126.15,8.64686025]
[1767177907390,2.69812482,126.18,126.15,8.64701401]
[1767177907571,2.69812482,126.18,126.16,0.72]
[1767177909780,2.02812482,126.2,126.17,0.72]
[1767177910107,2.69812482,126.21,126.18,0.72]
[1767177913405,0.67,126.21,126.18,2.74812482]
[1767177915409,2.69812482,126.21,126.18,0.72]
[1767177917504,0.67,126.21,126.18,0.72]
[1767177917713,2.69812482,126.21,126.18,0.72]
[1767177922007,0.67,126.21,126.18,0.72]
[1767177922197,2.69812482,126.21,126.18,0.72]
[1767177926011,0.67,126.21,126.18,2.69812482]
[1767177927195,0.67,126.21,126.19,0.67]
[1767177928009,0.67,126.21,126.18,2.02812482]
[1767177928214,0.67,126.21,126.18,0.67]
[1767177929017,2.69812482,126.21,126.18,0.67]
[1767177932431,0.67,126.21,126.18,0.67]
[1767177932636,2.69812482,126.21,126.18,0.67]
[1767177936221,2.02812482,126.2,126.18,0.67]
[1767177936429,2.70812482,126.2,126.18,0.67]
[1767177937835,0.68,126.2,126.18,0.67]
[1767177954339,0.68,126.21,126.18,0.67]
[1767177955258,0.1,126.23,126.21,0.68]
[1767177955844,0.78,126.23,126.21,0.68]
[1767177961957,0.1,126.23,126.21,0.68]
[1767177973272,0.75,126.23,126.21,0.68]
[1767177989603,0.1,126.26,126.23,0.7]
[1767177989788,0.76,126.26,126.22,3.8705349]
[1767177989987,3.2705349,126.26,126.23,0.7]
[1767177990207,0.66,126.25,126.23,0.7]
[1767177993189,3.9305349,126.26,126.23,0.7]
[1767177993591,0.1,126.26,126.23,0.7]
[1767177993808,0.66,126.25,126.23,0.7]
[1767177994388,0.66,126.24,126.22,0.7]
[1767177994882,3.8305349,126.25,126.22,0.7]
[1767177995495,0.66,126.25,126.22,0.7]
[1767177995695,3.8305349,126.25,126.22,0.7]
[1767177995895,0.66,126.25,126.22,0.7]
[1767177996114,0.81,126.26,126.23,0.7]
[1767177999311,0.81,126.26,126.24,3.8705349]
[1767178000007,0.81,126.26,126.24,0.7]
[1767178000619,0.1,126.26,126.24,0.7]
[1767178007025,0.1,126.28,126.26,0.7]
[1767178007226,0.1,126.28,126.27,0.7]
[1767178009536,0.1,126.28,126.27,3.8705349]
[1767178010211,0.1,126.28,126.27,0.7]
[1767178016339,0.1,126.28,126.27,2.72618837]
[1767178017969,0.1,126.29,126.28,0.7]
[1767178018247,0.1,126.29,126.28,2.72618837]
[1767178018429,0.1,126.29,126.28,0.7]
[1767178020433,0.1,126.29,126.28,2.72618837]
[1767178020619,0.1,126.31,126.29,0.7]
[1767178020917,0.1,126.31,126.3,2.02618837]
[1767178021430,0.1,126.31,126.29,2.72618837]
[1767178031759,0.1,126.31,126.3,2.02618837]
[1767178037357,0.1,126.31,126.29,2.72618837]
[1767178040073,0.1,126.31,126.29,0.7]
[1767178040254,0.1,126.31,126.29,2.72618837]
[1767178041797,0.1,126.33,126.31,0.68]
[1767178041952,0.1,126.34,126.32,2.70618837]
[1767178042353,0.81,126.34,126.32,2.70618837]
[1767178048680,0.81,126.34,126.32,0.68]
[1767178049465,2.73618837,126.33,126.3,0.68]
[1767178050183,2.02618837,126.33,126.3,0.68]
[1767178050389,0.71,126.32,126.3,0.68]
[1767178051184,0.71,126.33,126.3,2.70618837]
[1767178063085,0.71,126.33,126.3,0.68]
[1767178064699,0.71,126.33,126.3,8.59760259]
[1767178067401,0.71,126.33,126.31,2.02618837]
[1767178067892,0.79,126.34,126.31,2.71618837]
[1767178068102,0.79,126.34,126.31,2.02618837]
[1767178068282,0.79,126.34,126.31,2.71618837]
[1767178068786,0.79,126.34,126.31,10.63301504]
[1767178070992,0.1,126.34,126.32,2.71618837]
[1767178072199,0.1,126.34,126.33,0.69]
[1767178072503,0.1,126.35,126.33,3.85226079]
[1767178073803,0.79,126.35,126.32,8.60589074]
[1767178074202,0.69,126.32,126.29,62.99]
[1767178074405,3.16226079,126.33,126.29,0.69]
[1767178074700,3.85226079,126.33,126.29,0.69]
[1767178075104,3.85226079,126.33,126.3,0.69]
[1767178076706,3.16226079,126.33,126.3,0.69]
[1767178076898,0.69,126.32,126.3,0.69]
[1767178081409,0.69,126.32,126.3,8.60765497]
[1767178083015,0.69,126.32,126.3,0.69]
[1767178083814,3.16226079,126.32,126.27,0.69]
[1767178084001,0.69,126.3,126.27,0.69]
[1767178084319,3.85226079,126.3,126.27,0.69]
[1767178084813,0.69,126.3,126.27,0.69]
[1767178085007,0.69,126.3,126.27,8.60950424]
[1767178085314,0.69,126.3,126.27,11.77176503]
[1767178085713,0.69,126.3,126.28,11.76107473]
[1767178088407,0.68,126.32,126.29,0.68]
[1767178089204,0.68,126.33,126.3,3.84226079]
[1767178089893,0.68,126.33,126.31,0.68]
[1767178090313,0.68,126.33,126.31,8.59679045]
[1767178092094,0.68,126.34,126.31,8.59679045]
[1767178096100,0.68,126.34,126.31,11.75905124]
[1767178097423,0.68,126.34,126.31,0.68]
[1767178097611,0.69,126.33,126.31,0.68]
[1767178097812,0.69,126.33,126.31,8.59692655]
[1767178098325,0.69,126.33,126.31,7.91692655]
[1767178104631,3.16226079,126.34,126.31,7.91692655]
[1767178104934,18.41226079,126.35,126.32,0.7]